fUST/lending_fUST_20250828
["ID","MTS","AMOUNT","RATE_DAILY","PERIOD"]
[381728934,1756323049221,-480.0,0.00022191,2]
[381728935,1756323049231,-480.0,0.00022191,2]
[381728936,1756323049242,-480.0,0.00022191,2]
[381728937,1756323049252,-480.0,0.00022191,2]
[381728938,1756323049262,-480.0,0.00022191,2]
[381728939,1756323049272,-480.0,0.00022191,2]
[381728940,1756323049282,-480.0,0.00022191,2]
[381728941,1756323049292,-480.0,0.00022191,2]
[381728942,1756323049302,-482.24467229,0.00022191,2]
[381728943,1756323049311,-480.0,0.00022191,2]
[381728944,1756323049320,-480.0,0.00022191,2]
[381728945,1756323049330,-480.0,0.00022191,2]
[381728946,1756323049340,-480.0,0.00022191,2]
[381728947,1756323049350,-480.0,0.00022191,2]
[381728948,1756323049359,-480.0,0.00022191,2]
[381728949,1756323049369,-480.0,0.00022191,2]
[381728950,1756323049379,-547.81,0.00022191,2]
[381728951,1756323049388,-480.0,0.00022191,2]
[381728952,1756323049398,-480.0,0.00022191,2]
[381728953,1756323049407,-480.0,0.00022191,2]
[381728954,1756323049416,-480.0,0.00022191,2]
[381728955,1756323049427,-480.0,0.00022191,2]
[381728956,1756323049436,-480.0,0.00022191,2]
[381728957,1756323049446,-480.0,0.00022191,2]
[381728958,1756323049455,-480.0,0.00022191,2]
[381728959,1756323049465,-554.44,0.00022191,2]
[381728960,1756323049474,-480.0,0.00022191,2]
[381728961,1756323049484,-480.0,0.00022191,2]
[381728962,1756323049493,-480.0,0.00022191,2]
[381728963,1756323049503,-480.0,0.00022191,2]
[381728964,1756323049513,-480.0,0.00022191,2]
[381728965,1756323049522,-643.26,0.00022191,2]
[381728966,1756323049532,-480.0,0.00022191,2]
[381728967,1756323049541,-480.0,0.00022191,2]
[381728968,1756323049551,-480.0,0.00022191,2]
[381728969,1756323049560,-750.77,0.00022191,2]
[381728970,1756323049570,-519.91388181,0.00022191,2]
[381728971,1756323049579,-480.0,0.00022191,2]
[381728972,1756323049589,-561.07,0.00022191,2]
[381728973,1756323049598,-480.0,0.00022191,2]
[381728974,1756323049607,-480.0,0.00022191,2]
[381728975,1756323049617,-156.1979697,0.00022191,2]
[381728976,1756323049626,-480.0,0.00022191,2]
[381728977,1756323049635,-480.0,0.00022191,2]
[381728978,1756323049645,-480.0,0.00022191,2]
[381728979,1756323049654,-480.0,0.00022191,2]
[381728980,1756323049664,-538.73,0.00022191,2]
[381728981,1756323049673,-480.0,0.00022191,2]
[381728982,1756323049683,-480.0,0.00022191,2]
[381728983,1756323049692,-605.18,0.00022191,2]
[381728984,1756323049702,-377.52172376,0.00022191,2]
[381728985,1756323049711,-675.64,0.00022191,2]
[381728986,1756323049721,-480.0,0.00022191,2]
[381728987,1756323049730,-480.0,0.00022191,2]
[381728988,1756323049739,-480.0,0.00022191,2]
[381728989,1756323049749,-480.0,0.00022191,2]
[381728990,1756323049759,-480.0,0.00022191,2]
[381728991,1756323049769,-480.0,0.00022191,2]
[381728992,1756323049779,-480.0,0.00022191,2]
[381728993,1756323049788,-480.0,0.00022191,2]
[381728994,1756323049798,-480.0,0.00022191,2]
[381728995,1756323049808,-480.0,0.00022191,2]
[381728996,1756323049819,-480.0,0.00022191,2]
[381728997,1756323049830,-480.0,0.00022191,2]
[381728998,1756323049840,-480.0,0.00022191,2]
[381728999,1756323049849,-1030.53,0.00022191,2]
[381729000,1756323049859,-632.06,0.00022191,2]
[381729001,1756323049869,-480.0,0.00022191,2]
[381729002,1756323049880,-480.0,0.00022191,2]
[381729003,1756323049891,-549.44,0.00022191,2]
[381729004,1756323049900,-724.85,0.00022191,2]
[381729005,1756323049911,-480.0,0.00022191,2]
[381729006,1756323049923,-480.0,0.00022191,2]
[381729007,1756323049932,-480.0,0.00022191,2]
[381729008,1756323049942,-480.0,0.00022191,2]
[381729009,1756323049951,-480.0,0.00022191,2]
[381729010,1756323049962,-480.0,0.00022191,2]
[381729011,1756323049972,-1028.8,0.00022191,2]
[381729012,1756323049983,-480.0,0.00022191,2]
[381729013,1756323049992,-993.97,0.00022191,2]
[381729014,1756323050002,-480.0,0.00022191,2]
[381729015,1756323050012,-480.0,0.00022191,2]
[381729016,1756323050021,-480.0,0.00022191,2]
[381729017,1756323050031,-480.0,0.00022191,2]
[381729018,1756323050040,-825.94,0.00022191,2]
[381729019,1756323050050,-480.0,0.00022191,2]
[381729020,1756323050059,-1444.66,0.00022191,2]
[381729021,1756323050068,-480.0,0.00022191,2]
[381729022,1756323050078,-480.0,0.00022191,2]
[381729023,1756323050087,-480.0,0.00022191,2]
[381729024,1756323050096,-480.0,0.00022191,2]
[381729025,1756323050105,-480.0,0.00022191,2]
[381729026,1756323050115,-480.0,0.00022191,2]
[381729027,1756323050124,-480.0,0.00022191,2]
[381729028,1756323050133,-608.11,0.00022191,2]
[381729029,1756323050144,-730.49,0.00022191,2]
[381729030,1756323050155,-480.0,0.00022191,2]
[381729031,1756323050164,-480.0,0.00022191,2]
[381729032,1756323050175,-1201.19,0.00022191,2]
[381729033,1756323050184,-337.96127786,0.00022191,2]
[381729034,1756323050194,-491.88634379,0.00022191,2]
[381729035,1756323050207,-594.31,0.00022191,2]
[381729036,1756323050219,-480.0,0.00022191,2]
[381729037,1756323050228,-480.0,0.00022191,2]
[381729038,1756323050238,-480.0,0.00022191,2]
[381729039,1756323050248,-480.0,0.00022191,2]
[381729040,1756323050257,-480.0,0.00022191,2]
[381729041,1756323050266,-500.0,0.00022191,2]
[381729042,1756323050276,-480.0,0.00022191,2]
[381729043,1756323050286,-480.0,0.00022191,2]
[381729044,1756323050297,-480.0,0.00022191,2]
[381729045,1756323050306,-480.0,0.00022191,2]
[381729046,1756323050316,-480.0,0.00022191,2]
[381729047,1756323050327,-717.78,0.00022191,2]
[381729048,1756323050337,-493.61,0.00022191,2]
[381729049,1756323050346,-480.0,0.00022191,2]
[381729050,1756323050355,-480.0,0.00022191,2]
[381729051,1756323050365,-480.0,0.00022191,2]
[381729052,1756323050374,-480.0,0.00022191,2]
[381729053,1756323050384,-730.68,0.00022191,2]
[381729054,1756323050393,-480.0,0.00022191,2]
[381729055,1756323050403,-480.0,0.00022191,2]
[381729056,1756323050412,-480.0,0.00022191,2]
[381729057,1756323050422,-204.42580952,0.00022191,2]
[381729058,1756323050431,-480.0,0.00022191,2]
[381729059,1756323050441,-480.0,0.00022191,2]
[381729060,1756323050451,-480.0,0.00022191,2]
[381729061,1756323050461,-480.0,0.00022191,2]
[381729062,1756323050470,-480.0,0.00022191,2]
[381729063,1756323050479,-480.0,0.00022191,2]
[381729064,1756323050489,-480.0,0.00022191,2]
[381729065,1756323050499,-489.77,0.00022191,2]
[381729066,1756323050508,-480.0,0.00022191,2]
[381729067,1756323050518,-480.0,0.00022191,2]
[381729068,1756323050528,-480.0,0.00022191,2]
[381729069,1756323050538,-666.18,0.00022191,2]
[381729070,1756323050547,-480.0,0.00022191,2]
[381729071,1756323050558,-480.0,0.00022191,2]
[381729072,1756323050567,-480.0,0.00022191,2]
[381729073,1756323050577,-480.0,0.00022191,2]
[381729074,1756323050587,-480.0,0.00022191,2]
[381729075,1756323050597,-480.0,0.00022191,2]
[381729076,1756323050607,-1220.42,0.00022191,2]
[381729077,1756323050616,-480.0,0.00022191,2]
[381729078,1756323050625,-635.39,0.00022191,2]
[381729079,1756323050635,-480.0,0.00022191,2]
[381729080,1756323050644,-714.69,0.00022191,2]
[381729081,1756323050653,-480.0,0.00022191,2]
[381729082,1756323050663,-480.0,0.00022191,2]
[381729083,1756323050674,-480.0,0.00022191,2]
[381729084,1756323050684,-480.0,0.00022191,2]
[381729085,1756323050693,-707.21,0.00022191,2]
[381729086,1756323050703,-480.0,0.00022191,2]
[381729087,1756323050712,-515.83,0.00022191,2]
[381729088,1756323050722,-500.0,0.00022191,2]
[381729089,1756323050731,-549.82,0.00022191,2]
[381729090,1756323050740,-480.0,0.00022191,2]
[381729091,1756323050750,-480.0,0.00022191,2]
[381729092,1756323050759,-632.17,0.00022191,2]
[381729093,1756323050768,-480.0,0.00022191,2]
[381729094,1756323050778,-480.0,0.00022191,2]
[381729095,1756323050787,-480.0,0.00022191,2]
[381729096,1756323050796,-480.0,0.00022191,2]
[381729097,1756323050805,-480.0,0.00022191,2]
[381729098,1756323050815,-480.0,0.00022191,2]
[381729099,1756323050829,-6175.3,0.00022191,2]
[381729100,1756323050839,-480.0,0.00022191,2]
[381729101,1756323050849,-3990.02,0.00022191,2]
[381729102,1756323050859,-261.04964131,0.00022191,2]
[381729103,1756323050869,-1894.57,0.00022191,2]
[381729104,1756323050878,-1223.96,0.00022191,2]
[381729105,1756323050888,-480.0,0.00022191,2]
[381729106,1756323050898,-372.07155672,0.00022191,2]
[381729107,1756323050908,-570.21,0.00022191,2]
[381729108,1756323050917,-480.0,0.00022191,2]
[381729109,1756323050928,-602.76347263,0.00022191,2]
[381729110,1756323050937,-480.0,0.00022191,2]
[381729111,1756323050947,-918.17019943,0.00022191,2]
[381729112,1756323051974,-2934.86980057,0.00022191,2]
[381729113,1756323051985,-843.7,0.00022191,2]
[381729114,1756323051994,-1126.76,0.00022191,2]
[381729115,1756323052004,-480.0,0.00022191,2]
[381729116,1756323052013,-480.0,0.00022191,2]
[381729117,1756323052023,-480.0,0.00022191,2]
[381729118,1756323052032,-480.0,0.00022191,2]
[381729119,1756323052043,-865.13,0.00022191,2]
[381729120,1756323052053,-480.0,0.00022191,2]
[381729121,1756323052063,-1312.94,0.00022191,2]
[381729122,1756323052073,-2471.66,0.00022191,2]
[381729123,1756323052086,-480.0,0.00022191,2]
[381729124,1756323052095,-1111.63,0.00022191,2]
[381729125,1756323052105,-633.37,0.00022191,2]
[381729126,1756323052114,-480.0,0.00022191,2]
[381729127,1756323052123,-480.0,0.00022191,2]
[381729128,1756323052133,-247.81819865,0.00022191,2]
[381729129,1756323052142,-1597.14,0.00022191,2]
[381729130,1756323052152,-606.99,0.00022191,2]
[381729131,1756323052161,-706.79,0.00022191,2]
[381729132,1756323052170,-480.0,0.00022191,2]
[381729133,1756323052181,-480.0,0.00022191,2]
[381729134,1756323052190,-1194.13,0.00022191,2]
[381729135,1756323052199,-480.0,0.00022191,2]
[381729136,1756323052209,-480.0,0.00022191,2]
[381729137,1756323052218,-1069.5,0.00022191,2]
[381729138,1756323052227,-480.0,0.00022191,2]
[381729139,1756323052236,-480.0,0.00022191,2]
[381729140,1756323052246,-480.0,0.00022191,2]
[381729141,1756323052255,-560.99,0.00022191,2]
[381729142,1756323052264,-480.0,0.00022191,2]
[381729143,1756323052275,-480.0,0.00022191,2]
[381729144,1756323052285,-654.23,0.00022191,2]
[381729145,1756323052296,-480.0,0.00022191,2]
[381729146,1756323052306,-480.0,0.00022191,2]
[381729147,1756323052315,-480.0,0.00022191,2]
[381729148,1756323052326,-1350.83,0.00022191,2]
[381729149,1756323052336,-482.05,0.00022191,2]
[381729150,1756323052346,-480.0,0.00022191,2]
[381729151,1756323052355,-614.99,0.00022191,2]
[381729152,1756323052364,-480.0,0.00022191,2]
[381729153,1756323052374,-480.0,0.00022191,2]
[381729154,1756323052383,-1472.78,0.00022191,2]
[381729155,1756323052393,-480.0,0.00022191,2]
[381729156,1756323052403,-727.26,0.00022191,2]
[381729157,1756323052412,-480.0,0.00022191,2]
[381729158,1756323052422,-1763.33,0.00022191,2]
[381729159,1756323052431,-480.0,0.00022191,2]
[381729160,1756323052441,-3623.59,0.00022191,2]
[381729161,1756323052451,-1471.39,0.00022191,2]
[381729162,1756323052460,-480.0,0.00022191,2]
[381729163,1756323052470,-480.0,0.00022191,2]
[381729164,1756323052479,-480.0,0.00022191,2]
[381729165,1756323052489,-583.19,0.00022191,2]
[381729166,1756323052498,-480.0,0.00022191,2]
[381729167,1756323052507,-480.0,0.00022191,2]
[381729168,1756323052516,-480.0,0.00022191,2]
[381729169,1756323052526,-480.0,0.00022191,2]
[381729170,1756323052535,-750.28,0.00022191,2]
[381729171,1756323052544,-480.0,0.00022191,2]
[381729172,1756323052554,-480.0,0.00022191,2]
[381729173,1756323052563,-526.31,0.00022191,2]
[381729174,1756323052572,-2040.94,0.00022191,2]
[381729175,1756323052583,-1788.88,0.00022191,2]
[381729176,1756323052593,-480.0,0.00022191,2]
[381729177,1756323052602,-480.0,0.00022191,2]
[381729178,1756323052612,-480.0,0.00022191,2]
[381729179,1756323052622,-480.0,0.00022191,2]
[381729180,1756323052632,-485.45,0.00022191,2]
[381729181,1756323052642,-480.0,0.00022191,2]
[381729182,1756323052652,-1581.11,0.00022191,2]
[381729183,1756323052662,-1652.59,0.00022191,2]
[381729184,1756323052674,-480.0,0.00022191,2]
[381729185,1756323052683,-480.0,0.00022191,2]
[381729186,1756323052692,-573.96,0.00022191,2]
[381729187,1756323052701,-480.0,0.00022191,2]
[381729188,1756323052711,-1299.07,0.00022191,2]
[381729189,1756323052722,-480.0,0.00022191,2]
[381729190,1756323052731,-480.0,0.00022191,2]
[381729191,1756323052741,-480.0,0.00022191,2]
[381729192,1756323052750,-480.0,0.00022191,2]
[381729193,1756323052759,-480.0,0.00022191,2]
[381729194,1756323052769,-480.0,0.00022191,2]
[381729195,1756323052778,-480.0,0.00022191,2]
[381729196,1756323052789,-480.0,0.00022191,2]
[381729197,1756323052798,-1092.95,0.00022191,2]
[381729198,1756323052808,-3516.17,0.00022191,2]
[381729199,1756323052821,-480.0,0.00022191,2]
[381729200,1756323052831,-480.0,0.00022191,2]
[381729201,1756323052841,-4003.02,0.00022191,2]
[381729202,1756323052850,-480.0,0.00022191,2]
[381729203,1756323052860,-480.0,0.00022191,2]
[381729204,1756323052869,-817.8,0.00022191,2]
[381729205,1756323052878,-151.0,0.00022191,7]
[381729206,1756323052887,-191.269107,0.00022191,7]
[381729207,1756323052898,-480.0,0.00022191,2]
[381729208,1756323052909,-678.08,0.00022191,2]
[381729209,1756323052919,-480.0,0.00022191,2]
[381729210,1756323052928,-1192.15,0.00022191,2]
[381729211,1756323052938,-480.0,0.00022191,2]
[381729212,1756323052947,-480.0,0.00022191,2]
[381729213,1756323052956,-480.0,0.00022191,2]
[381729214,1756323052966,-263.22713991,0.00022191,2]
[381729215,1756323052975,-480.0,0.00022191,2]
[381729216,1756323052985,-480.0,0.00022191,2]
[381729217,1756323052994,-480.0,0.00022191,2]
[381729218,1756323053004,-887.27,0.00022191,2]
[381729219,1756323053013,-1120.24,0.00022191,2]
[381729220,1756323053022,-706.52,0.00022191,2]
[381729221,1756323053032,-480.0,0.00022191,2]
[381729222,1756323053041,-512.2,0.00022191,2]
[381729223,1756323053050,-480.0,0.00022191,2]
[381729224,1756323053060,-480.0,0.00022191,2]
[381729225,1756323053069,-480.0,0.00022191,2]
[381729226,1756323053078,-480.0,0.00022191,2]
[381729227,1756323053088,-701.09,0.00022191,2]
[381729228,1756323053098,-435.60249108,0.00022191,2]
[381729229,1756323053107,-480.0,0.00022191,2]
[381729230,1756323053116,-480.0,0.00022191,2]
[381729231,1756323053125,-488.29,0.00022191,2]
[381729232,1756323053134,-480.0,0.00022191,2]
[381729233,1756323053143,-480.0,0.00022191,2]
[381729234,1756323053153,-480.0,0.00022191,2]
[381729235,1756323053162,-480.0,0.00022191,2]
[381729236,1756323053172,-480.0,0.00022191,2]
[381729237,1756323053182,-480.0,0.00022191,2]
[381729238,1756323053191,-480.0,0.00022191,2]
[381729239,1756323053200,-480.0,0.00022191,2]
[381729240,1756323053210,-480.0,0.00022191,2]
[381729241,1756323053219,-5442.62,0.00022191,2]
[381729242,1756323053229,-480.0,0.00022191,2]
[381729243,1756323053239,-480.0,0.00022191,2]
[381729244,1756323053249,-964.16,0.00022191,2]
[381729245,1756323053258,-4256.14,0.00022191,2]
[381729246,1756323053268,-1146.64,0.00022191,2]
[381729247,1756323053278,-1373.85,0.00022191,2]
[381729248,1756323053287,-480.0,0.00022191,2]
[381729249,1756323053296,-1168.41,0.00022191,2]
[381729250,1756323053306,-600.86,0.00022191,2]
[381729251,1756323053315,-480.0,0.00022191,2]
[381729252,1756323053324,-550.29715457,0.00022191,2]
[381729253,1756323053334,-420.0,0.00022191,2]
[381729254,1756323053344,-480.0,0.00022191,2]
[381729255,1756323053355,-480.0,0.00022191,2]
[381729256,1756323053365,-1431.39,0.00022191,2]
[381729257,1756323053375,-480.0,0.00022191,2]
[381729258,1756323053385,-564.51,0.00022191,2]
[381729259,1756323053394,-597.24,0.00022191,2]
[381729260,1756323053405,-480.0,0.00022191,2]
[381729261,1756323053416,-1100.72,0.00022191,2]
[381729262,1756323053429,-2619.99,0.00022191,2]
[381729263,1756323053439,-480.0,0.00022191,2]
[381729264,1756323053448,-480.0,0.00022191,2]
[381729265,1756323053458,-480.0,0.00022191,2]
[381729266,1756323053467,-151.0,0.00022191,7]
[381729267,1756323053476,-2268.55,0.00022191,2]
[381729268,1756323053487,-480.0,0.00022191,2]
[381729269,1756323053496,-480.0,0.00022191,2]
[381729270,1756323053506,-480.0,0.00022191,2]
[381729271,1756323053515,-480.0,0.00022191,2]
[381729272,1756323053527,-480.0,0.00022191,2]
[381729273,1756323053536,-480.0,0.00022191,2]
[381729274,1756323053546,-480.0,0.00022191,2]
[381729275,1756323053559,-480.0,0.00022191,2]
[381729276,1756323053570,-526.99,0.00022191,2]
[381729277,1756323053581,-480.0,0.00022191,2]
[381729278,1756323053591,-696.97,0.00022191,2]
[381729279,1756323053601,-480.0,0.00022191,2]
[381729280,1756323053610,-480.0,0.00022191,2]
[381729281,1756323053619,-892.31,0.00022191,2]
[381729282,1756323053629,-2594.78,0.00022191,2]
[381729283,1756323053638,-480.0,0.00022191,2]
[381729284,1756323053647,-480.0,0.00022191,2]
[381729285,1756323053656,-868.55,0.00022191,2]
[381729286,1756323053665,-733.57,0.00022191,2]
[381729287,1756323053676,-480.0,0.00022191,2]
[381729288,1756323053686,-480.0,0.00022191,2]
[381729289,1756323053695,-1367.33,0.00022191,2]
[381729290,1756323053705,-480.0,0.00022191,2]
[381729291,1756323053715,-480.0,0.00022191,2]
[381729292,1756323053724,-947.15,0.00022191,2]
[381729293,1756323053734,-1098.13,0.00022191,2]
[381729294,1756323053743,-480.0,0.00022191,2]
[381729295,1756323053752,-480.0,0.00022191,2]
[381729296,1756323053762,-594.3,0.00022191,2]
[381729297,1756323053771,-480.0,0.00022191,2]
[381729298,1756323053781,-480.0,0.00022191,2]
[381729299,1756323053790,-480.0,0.00022191,2]
[381729300,1756323053800,-480.0,0.00022191,2]
[381729301,1756323053809,-497.79,0.00022191,2]
[381729302,1756323053820,-480.0,0.00022191,2]
[381729303,1756323053831,-590.23,0.00022191,2]
[381729304,1756323053840,-480.0,0.00022191,2]
[381729305,1756323053850,-940.87,0.00022191,2]
[381729306,1756323053859,-645.22,0.00022191,2]
[381729307,1756323053870,-1343.29,0.00022191,2]
[381729308,1756323053880,-1246.87,0.00022191,2]
[381729309,1756323053889,-480.0,0.00022191,2]
[381729310,1756323053900,-480.0,0.00022191,2]
[381729311,1756323053910,-1314.13,0.00022191,2]
[381729312,1756323053919,-389.41162445,0.00022191,2]
[381729313,1756323053930,-480.0,0.00022191,2]
[381729314,1756323053939,-1320.09,0.00022191,2]
[381729315,1756323053948,-260.05766195,0.00022191,2]
[381729316,1756323053958,-480.0,0.00022191,2]
[381729317,1756323053967,-603.03,0.00022191,2]
[381729318,1756323053977,-568.31,0.00022191,2]
[381729319,1756323053986,-480.0,0.00022191,2]
[381729320,1756323053995,-151.0,0.00022191,7]
[381729321,1756323054005,-151.0,0.00022191,7]
[381729322,1756323054014,-480.0,0.00022191,2]
[381729323,1756323054024,-480.0,0.00022191,2]
[381729324,1756323054034,-552.07,0.00022191,2]
[381729325,1756323054043,-828.75,0.00022191,2]
[381729326,1756323054099,-480.0,0.00022191,2]
[381729327,1756323054108,-480.0,0.00022191,2]
[381729328,1756323054117,-480.0,0.00022191,2]
[381729329,1756323054126,-487.6,0.00022191,2]
[381729330,1756323054135,-548.9,0.00022191,2]
[381729331,1756323054144,-9515.01,0.000222,2]
[381729332,1756323054154,-800.0,0.00022217,2]
[381729333,1756323054163,-420.0,0.00022311,2]
[381729334,1756323054172,-10987.9518398,0.00022317,2]
[381729335,1756323089297,259.0,8.4e-07,2]
[381729336,1756323101707,3296.04331114,0.000199,2]
[381729360,1756323203137,1187.0,0.00030644,120]
[381729363,1756323209886,5000.0,0.00020008,2]
[381729367,1756323235556,49110.9274251,0.00019437,2]
[381729371,1756323252192,999.0,0.00030644,120]
[381729372,1756323277681,3186.17520073,0.000199,2]
[381729373,1756323321522,168.500095,0.00013699,2]
[381729375,1756323374223,-168.500095,0.00020187,2]
[381729376,1756323374288,-168.500095,0.00020202,2]
[381729377,1756323374311,-1862.99981,0.00020202,2]
[381729378,1756323376681,1000.0,0.00019384,2]
[381729382,1756323424160,-276.07137913,0.00020302,2]
[381729383,1756323424192,-300.0,0.00020371,2]
[381729384,1756323424222,-300.0,0.00020372,2]
[381729385,1756323424250,-268.0,0.00020372,2]
[381729386,1756323424281,-300.0,0.00020372,2]
[381729387,1756323424311,-11.85724174,0.00020372,2]
[381729388,1756323424328,-276.07137913,0.00020372,2]
[381729389,1756323424344,-12.07137913,0.00020372,2]
[381729390,1756323424353,-287.92862087,0.00020372,2]
[381729391,1756323424373,-212.07137913,0.00020372,2]
[381729392,1756323424383,-87.92862087,0.00020372,2]
[381729393,1756323424398,-268.0,0.00020372,2]
[381729394,1756323424421,-144.07137913,0.00020372,2]
[381729395,1756323424430,-155.92862087,0.00020372,2]
[381729396,1756323424449,-300.0,0.00020372,2]
[381729399,1756323434431,-191.38124444,0.00020272,2]
[381729402,1756323452093,3129.02379873,0.000199,2]
[381729404,1756323481229,172.95,0.00015984,2]
[381729405,1756323481586,172.93,0.00015984,2]
[381729406,1756323627551,3024.72300541,0.000199,2]
[381729429,1756323802417,2923.89890522,0.000199,2]
[381729434,1756323909793,199.040283,0.00019385,2]
[381729435,1756323923432,4374.1377064,0.00019382,2]
[381729436,1756323980964,2826.43560836,0.000199,2]
[381729438,1756324078628,152.99,0.00030653,60]
[381729440,1756324143995,171.289907,0.0001976,2]
[381729441,1756324144339,372.14645944,0.00019761,2]
[381729442,1756324157599,2732.22108812,0.000199,2]
[381729546,1756324238170,-522.10972069,0.000202,2]
[381729547,1756324238180,-45.84028355,0.000203,2]
[381729551,1756324238223,-449.81675201,0.000203,2]
[381729552,1756324238234,-623.0,0.00020371,2]
[381729553,1756324238243,-300.0,0.00020371,2]
[381729554,1756324238253,-500.0,0.00020372,2]
[381729555,1756324238262,-500.0,0.00020372,2]
[381729556,1756324238271,-424.92448354,0.00020372,2]
[381729557,1756324238281,-500.0,0.00020372,2]
[381729558,1756324238290,-500.0,0.00020372,2]
[381729559,1756324238299,-567.95000424,0.00020373,2]
[381729560,1756324238308,-220.85710328,0.00020373,2]
[381729561,1756324238318,-85757.94047508,0.00020373,2]
[381729562,1756324238327,-870.78,0.00020392,3]
[381729563,1756324238336,-435.39,0.00020392,3]
[381729564,1756324238345,-217.69,0.00020392,3]
[381729565,1756324238355,-653.12,0.00020392,3]
[381729566,1756324238363,-370000.0,0.00020402,2]
[381729567,1756324238376,-500.0,0.00020473,2]
[381729568,1756324238385,-500.0,0.00020473,2]
[381729569,1756324238395,-500.0,0.00020473,2]
[381729570,1756324238404,-500.0,0.00020473,2]
[381729571,1756324238413,-500.0,0.00020473,2]
[381729572,1756324238422,-500.0,0.00020473,2]
[381729573,1756324238432,-504.0734374,0.00020473,2]
[381729574,1756324238442,-500.0,0.00020473,2]
[381729575,1756324238452,-500.0,0.00020473,2]
[381729576,1756324238462,-500.0,0.00020473,2]
[381729577,1756324238472,-500.0,0.00020473,2]
[381729578,1756324238482,-500.0,0.00020473,2]
[381729579,1756324238492,-500.0,0.00020473,2]
[381729580,1756324238502,-299.52040869,0.00020473,2]
[381729581,1756324238511,-500.0,0.00020473,2]
[381729582,1756324238520,-500.0,0.00020473,2]
[381729583,1756324238530,-407.15470342,0.00020473,2]
[381729584,1756324238540,-500.0,0.00020473,2]
[381729585,1756324238550,-500.0,0.00020473,2]
[381729586,1756324238559,-256.84276516,0.00020473,2]
[381729587,1756324238568,-500.0,0.00020473,2]
[381729588,1756324238578,-500.0,0.00020473,2]
[381729589,1756324238587,-500.0,0.00020473,2]
[381729590,1756324238597,-500.0,0.00020473,2]
[381729591,1756324238611,-500.0,0.00020473,2]
[381729592,1756324238621,-500.0,0.00020473,2]
[381729593,1756324238632,-500.0,0.00020473,2]
[381729594,1756324238642,-503.6196867,0.00020473,2]
[381729595,1756324238651,-500.0,0.00020473,2]
[381729596,1756324238662,-220.85710328,0.00020803,2]
[381729597,1756324238671,-1546.70171589,0.00020977,2]
[381729598,1756324238682,-500.0,0.00021021,2]
[381729599,1756324238693,-500.0,0.00021021,2]
[381729600,1756324238701,-213.60853764,0.00021021,2]
[381729601,1756324238711,-500.0,0.00021021,2]
[381729602,1756324238720,-1000.0,0.00021021,2]
[381729603,1756324238731,-500.0,0.00021021,2]
[381729604,1756324238741,-500.0,0.00021021,2]
[381729605,1756324238750,-500.0,0.00021021,2]
[381729606,1756324238759,-500.0,0.00021021,2]
[381729607,1756324238768,-500.0,0.00021021,2]